fUST/lending_fUST_20250610
["ID","MTS","AMOUNT","RATE_DAILY","PERIOD"]
[365208499,1749534641063,-460.0,0.00021917,4]
[365208500,1749534641073,-3244.6,0.00021917,4]
[365208501,1749534641082,-460.0,0.00021917,4]
[365208502,1749534641091,-460.0,0.00021917,4]
[365208503,1749534641100,-802.39,0.00021917,4]
[365208504,1749534641109,-460.0,0.00021917,4]
[365208505,1749534641118,-793.87,0.00021917,4]
[365208506,1749534641128,-811.37,0.00021917,4]
[365208507,1749534641138,-460.0,0.00021917,4]
[365208508,1749534641148,-380.0,0.00021917,4]
[365208509,1749534641159,-460.0,0.00021917,4]
[365208510,1749534641168,-460.0,0.00021917,4]
[365208511,1749534641178,-281.97587084,0.00021917,4]
[365208512,1749534641188,-460.0,0.00021917,4]
[365208513,1749534641197,-509.53,0.00021917,4]
[365208514,1749534641206,-460.0,0.00021917,4]
[365208515,1749534641216,-460.0,0.00021917,4]
[365208516,1749534641226,-361.44146629,0.00021917,4]
[365208517,1749534641235,-460.0,0.00021917,4]
[365208518,1749534641245,-914.94,0.00021917,4]
[365208519,1749534641254,-460.0,0.00021917,4]
[365208520,1749534641264,-348.19622636,0.00021917,4]
[365208521,1749534641273,-460.0,0.00021917,4]
[365208522,1749534641282,-460.0,0.00021917,4]
[365208523,1749534641292,-460.0,0.00021917,4]
[365208524,1749534641302,-160.0,0.00021917,2]
[365208525,1749534641311,-1000.0,0.00021958,2]
[365208526,1749534641321,-2069.88,0.00021981,2]
[365208527,1749534641331,-161.0,0.00022,2]
[365208528,1749534641341,-3439.46512918,0.00022,2]
[365208529,1749534641351,-500.0,0.00022,2]
[365208530,1749534641361,-186.0,0.00022,2]
[365208531,1749534641371,-425.73233379,0.00022003,6]
[365208532,1749534641381,-1000.0,0.00022039,2]
[365208533,1749534641391,-1234.0,0.00022044,7]
[365208534,1749534641401,-425.73233379,0.00022141,6]
[365208535,1749534641412,-500.0,0.00022189,2]
[365208536,1749534641421,-504.02227482,0.00022189,2]
[365208537,1749534641431,-377.7642072,0.00022191,4]
[365208538,1749534641440,-270.0,0.00022191,4]
[365208539,1749534641450,-460.0,0.00022191,4]
[365208540,1749534641459,-360.0,0.00022191,4]
[365208541,1749534641469,-310.0,0.00022191,4]
[365208542,1749534641478,-300.0,0.00022191,4]
[365208543,1749534641487,-460.0,0.00022191,4]
[365208544,1749534641496,-360.0,0.00022191,4]
[365208545,1749534641505,-460.0,0.00022191,4]
[365208546,1749534641515,-460.0,0.00022191,4]
[365208547,1749534641524,-460.0,0.00022191,4]
[365208548,1749534641534,-373.88409828,0.00022191,4]
[365208549,1749534641543,-360.0,0.00022191,4]
[365208550,1749534641552,-460.0,0.00022191,4]
[365208551,1749534641562,-360.0,0.00022191,4]
[365208552,1749534641571,-360.0,0.00022191,4]
[365208553,1749534641581,-460.0,0.00022191,4]
[365208554,1749534641591,-360.0,0.00022191,4]
[365208555,1749534641600,-460.0,0.00022191,4]
[365208556,1749534641610,-270.01621852,0.00022191,4]
[365208557,1749534641622,-460.0,0.00022191,4]
[365208558,1749534641632,-250.0,0.00022191,4]
[365208559,1749534641641,-260.0,0.00022191,4]
[365208560,1749534641651,-460.0,0.00022191,4]
[365208561,1749534641664,-300.0,0.00022191,4]
[365208562,1749534641674,-460.0,0.00022191,4]
[365208563,1749534641684,-460.0,0.00022191,4]
[365208564,1749534641694,-460.0,0.00022191,4]
[365208565,1749534641704,-1048.57,0.00022191,4]
[365208566,1749534641713,-260.0,0.00022191,4]
[365208567,1749534641723,-300.0,0.00022191,4]
[365208568,1749534641732,-460.0,0.00022191,4]
[365208569,1749534641742,-460.0,0.00022191,4]
[365208570,1749534641751,-300.0,0.00022191,4]
[365208571,1749534641761,-460.0,0.00022191,2]
[365208572,1749534641770,-654.44,0.00022191,4]
[365208573,1749534641780,-360.0,0.00022191,4]
[365208574,1749534641789,-609.00884581,0.00022191,4]
[365208575,1749534641799,-685.68,0.00022191,4]
[365208576,1749534641812,-380.0,0.00022191,4]
[365208577,1749534641822,-210.42,0.00022191,4]
[365208578,1749534641832,-380.0,0.00022191,4]
[365208579,1749534641842,-3244.6,0.00022191,4]
[365208580,1749534641852,-300.0,0.00022191,4]
[365208581,1749534641861,-300.0,0.00022191,4]
[365208582,1749534641871,-802.39,0.00022191,4]
[365208583,1749534641880,-380.0,0.00022191,4]
[365208584,1749534641890,-793.87,0.00022191,4]
[365208585,1749534641900,-811.37,0.00022191,4]
[365208586,1749534641909,-460.0,0.00022191,4]
[365208587,1749534641919,-460.0,0.00022191,4]
[365208588,1749534641928,-460.0,0.00022191,4]
[365208589,1749534641937,-460.0,0.00022191,4]
[365208590,1749534641947,-509.53,0.00022191,4]
[365208591,1749534641957,-460.0,0.00022191,4]
[365208592,1749534641968,-360.0,0.00022191,4]
[365208593,1749534641978,-460.0,0.00022191,4]
[365208594,1749534641988,-914.94,0.00022191,4]
[365208595,1749534641998,-360.0,0.00022191,4]
[365208596,1749534642007,-334.78393435,0.00022191,4]
[365208597,1749534642016,-460.0,0.00022191,4]
[365208598,1749534642026,-597.74404699,0.00022191,4]
[365208599,1749534642035,-1234.0,0.00022278,7]
[365208600,1749534642045,-425.73233379,0.00022279,6]
[365208601,1749534642055,-1285.98168519,0.00022284,2]
[365208602,1749534642064,-452.66,0.000223,7]
[365208603,1749534642074,-207.4,0.00022359,2]
[365208604,1749534642083,-425.73233379,0.00022417,7]
[365208605,1749534642092,-460.0,0.00022465,4]
[365208606,1749534642101,-280.0,0.00022465,4]
[365208607,1749534642111,-403.16,0.00022465,4]
[365208608,1749534642120,-460.0,0.00022465,4]
[365208609,1749534642129,-260.0,0.00022465,4]
[365208610,1749534642138,-460.0,0.00022465,4]
[365208611,1749534642148,-240.0,0.00022465,4]
[365208612,1749534642157,-460.0,0.00022465,4]
[365208613,1749534642167,-460.0,0.00022465,4]
[365208614,1749534642175,-400.0,0.00022465,2]
[365208615,1749534642184,-360.0,0.00022465,4]
[365208616,1749534642193,-460.0,0.00022465,4]
[365208617,1749534642203,-460.0,0.00022465,4]
[365208618,1749534642213,-460.0,0.00022465,4]
[365208619,1749534642222,-1048.57,0.00022465,4]
[365208620,1749534642231,-460.0,0.00022465,4]
[365208621,1749534642241,-360.0,0.00022465,4]
[365208622,1749534642251,-460.0,0.00022465,2]
[365208623,1749534642261,-654.44,0.00022465,4]
[365208624,1749534642362,-685.68,0.00022465,4]
[365208625,1749534642372,-3244.6,0.00022465,4]
[365208626,1749534642382,-802.39,0.00022465,4]
[365208627,1749534642392,-793.87,0.00022465,4]
[365208628,1749534642401,-811.37,0.00022465,4]
[365208629,1749534642411,-271.94191544,0.00022465,4]
[365208630,1749534642421,-460.0,0.00022465,4]
[365208631,1749534642431,-260.0,0.00022465,4]
[365208632,1749534642441,-473.00973206,0.00022465,4]
[365208633,1749534642452,-509.53,0.00022465,4]
[365208634,1749534642462,-460.0,0.00022465,4]
[365208635,1749534642472,-220.22930484,0.00022465,4]
[365208636,1749534642483,-914.94,0.00022465,4]
[365208637,1749534642493,-460.0,0.00022465,4]
[365208638,1749534642503,-1000.0,0.00022506,2]
[365208639,1749534642513,-1234.0,0.00022513,7]
[365208640,1749534642523,-425.73233379,0.00022555,7]
[365208641,1749534642534,-1500.0,0.00022587,2]
[365208642,1749534642544,-963.0,0.00022603,2]
[365208643,1749534642553,-405.0,0.00022603,2]
[365208644,1749534642563,-2160.0,0.00022603,2]
[365208645,1749534642572,-653.0,0.00022603,2]
[365208646,1749534642582,-150.125,0.00022603,2]
[365208647,1749534642591,-425.73233379,0.00022693,7]
[365208648,1749534642601,-500.0,0.00022729,2]
[365208649,1749534642611,-501.75308559,0.00022737,2]
[365208650,1749534642623,-460.0,0.00022739,4]
[365208651,1749534642632,-358.42606361,0.00022739,4]
[365208652,1749534642642,-260.0,0.00022739,4]
[365208653,1749534642652,-260.0,0.00022739,4]
[365208654,1749534642663,-460.0,0.00022739,4]
[365208655,1749534642673,-260.0,0.00022739,4]
[365208656,1749534642683,-360.0,0.00022739,4]
[365208657,1749534642694,-460.0,0.00022739,4]
[365208658,1749534642704,-1048.57,0.00022739,4]
[365208659,1749534642715,-300.0,0.00022739,4]
[365208660,1749534642725,-482.37,0.00022739,2]
[365208661,1749534642735,-654.44,0.00022739,4]
[365208662,1749534642745,-685.68,0.00022739,4]
[365208663,1749534642755,-3244.6,0.00022739,4]
[365208664,1749534642764,-802.39,0.00022739,4]
[365208665,1749534642773,-793.87,0.00022739,4]
[365208666,1749534642783,-811.37,0.00022739,4]
[365208667,1749534642794,-460.0,0.00022739,4]
[365208668,1749534642804,-509.53,0.00022739,4]
[365208669,1749534642814,-460.0,0.00022739,4]
[365208670,1749534642824,-914.94,0.00022739,4]
[365208671,1749534642834,-460.0,0.00022739,4]
[365208672,1749534642843,-1234.0,0.00022747,7]
[365208673,1749534642853,-371.1330319,0.00022767,2]
[365208674,1749534642863,-587.0,0.00022801,2]
[365208675,1749534642872,-425.73233379,0.00022831,8]
[365208676,1749534642882,-1285.98168519,0.00022929,2]
[365208677,1749534642891,-2759.84,0.00022937,2]
[365208678,1749534642901,-425.73233379,0.00022969,8]
[365208679,1749534642910,-1234.0,0.00022981,7]
[365208680,1749534642919,-151.0,0.00023,7]
[365208681,1749534642929,-151.0,0.00023,7]
[365208682,1749534642939,-151.532531,0.00023,7]
[365208683,1749534642948,-151.0,0.00023,7]
[365208684,1749534642958,-151.0,0.00023,7]
[365208685,1749534642967,-238.759527,0.00023,7]
[365208686,1749534642976,-238.759527,0.00023,7]
[365208687,1749534642986,-500.0,0.00023,2]
[365208688,1749534642995,-460.0,0.00023013,4]
[365208689,1749534643005,-460.0,0.00023013,4]
[365208690,1749534643015,-460.0,0.00023013,4]
[365208691,1749534643024,-1048.57,0.00023013,4]
[365208692,1749534643033,-654.44,0.00023013,4]
[365208693,1749534643044,-685.68,0.00023013,4]
[365208695,1749534643054,-3244.6,0.00023013,4]
[365208696,1749534643063,-802.39,0.00023013,4]
[365208697,1749534643073,-793.87,0.00023013,4]
[365208698,1749534643083,-811.37,0.00023013,4]
[365208699,1749534643092,-151.52,0.00023013,4]
[365208700,1749534643103,-509.53,0.00023013,4]
[365208701,1749534643112,-460.0,0.00023013,4]
[365208702,1749534643122,-914.94,0.00023013,4]
[365208703,1749534643132,-460.0,0.00023013,4]
[365208705,1749534643142,-600.0,0.0002304,2]
[365208706,1749534643152,-163.7222236,0.00023041,2]
[365208707,1749534643161,-1918.7257074,0.00023081,2]
[365208708,1749534643170,-425.73233379,0.00023107,8]
[365208709,1749534643179,-264.7603169,0.00023135,2]
[365208710,1749534643189,-1234.0,0.00023215,7]
[365208711,1749534643198,-213.1263252,0.00023215,7]
[365208712,1749534643207,-425.73233379,0.00023245,8]
[365208713,1749534643217,-1000.0,0.00023277,2]
[365208714,1749534643226,-601.48050061,0.0002328,2]
[365208715,1749534643237,-460.0,0.00023287,4]
[365208716,1749534643246,-460.0,0.00023287,4]
[365208717,1749534643256,-460.0,0.00023287,4]
[365208718,1749534643265,-1048.57,0.00023287,4]
[365208719,1749534643275,-654.44,0.00023287,4]
[365208720,1749534643284,-685.68,0.00023287,4]
[365208721,1749534643294,-3244.6,0.00023287,4]
[365208722,1749534643303,-802.39,0.00023287,4]
[365208723,1749534643313,-793.87,0.00023287,4]
[365208724,1749534643322,-811.37,0.00023287,4]
[365208726,1749534643332,-509.53,0.00023287,4]
[365208727,1749534643342,-460.0,0.00023287,4]
[365208729,1749534643351,-914.94,0.00023287,4]
[365208731,1749534643360,-460.0,0.00023287,4]
[365208733,1749534643370,-1671.796009,0.00023332,3]
[365208736,1749534643379,-418.08362019,0.00023333,2]
[365208737,1749534643389,-2069.0,0.00023353,2]
[365208739,1749534643398,-425.73233379,0.00023383,9]
[365208741,1749534643408,-452.66,0.000234,7]
[365208743,1749534643417,-1234.0,0.00023449,7]
[365208745,1749534643427,-269.4942735,0.00023481,2]
[365208747,1749534643436,-151.0,0.000235,9]
[365208749,1749534643446,-425.73233379,0.00023521,9]
[365208751,1749534643455,-1083.95988916,0.00023536,2]
[365208753,1749534643465,-617.0,0.00023545,2]
[365208755,1749534643474,-256396.63557,0.00023556,2]
[365208757,1749534643483,-8356.36523632,0.00023557,2]
[365208759,1749534643494,-155.0,0.00023557,2]
[365208761,1749534643503,-4230.734931,0.00023557,2]
[365208763,1749534643513,-160.0,0.0002356,3]
[365208765,1749534643522,-200.0,0.00023561,4]
[365208767,1749534643531,-200.0,0.00023561,4]
[365208769,1749534643541,-200.0,0.00023561,4]
[365208771,1749534643550,-200.0,0.00023561,4]
[365208772,1749534643559,-200.0,0.00023561,4]
[365208775,1749534643570,-200.0,0.00023561,4]
[365208777,1749534643579,-201.55034724,0.00023561,4]
[365208779,1749534643589,-360.0,0.00023561,4]
[365208781,1749534643599,-460.0,0.00023561,4]
[365208782,1749534643608,-460.0,0.00023561,4]
[365208784,1749534643619,-1048.57,0.00023561,4]
[365208786,1749534643631,-654.44,0.00023561,4]
[365208789,1749534643641,-685.68,0.00023561,4]
[365208792,1749534643651,-3244.6,0.00023561,4]
[365208794,1749534643661,-802.39,0.00023561,4]
[365208798,1749534643672,-793.87,0.00023561,4]
[365208801,1749534643682,-811.37,0.00023561,4]
[365208804,1749534643693,-509.53,0.00023561,4]
[365208807,1749534643703,-460.0,0.00023561,4]
[365208809,1749534643713,-914.94,0.00023561,4]
[365208813,1749534643723,-360.0,0.00023561,4]
[365208816,1749534643732,-1777.40015212,0.00023562,2]
[365208818,1749534643742,-152.916699,0.00023568,7]
[365208820,1749534643751,-4230.734931,0.00023568,2]
[365208821,1749534643761,-12692.20479295,0.00023572,2]
[365208823,1749534643771,-1285.98168519,0.00023573,2]
[365208825,1749534643781,-1777.40015212,0.00023578,2]
[365208827,1749534643790,-1478.43,0.000236,7]
[365208829,1749534643800,-151.0,0.00023602,7]
[365208831,1749534643809,-151.0,0.00023602,7]
[365208833,1749534643819,-151.0,0.00023602,7]
[365208834,1749534643828,-250.896548,0.00023602,7]
[365208836,1749534643838,-238.759527,0.00023602,7]
[365208838,1749534643847,-238.759527,0.00023602,7]
[365208841,1749534643857,-10238.87001407,0.00023603,2]
[365208843,1749534643867,-1083.95988916,0.00023603,2]
[365208844,1749534643878,-1083.95988916,0.00023609,2]
[365208846,1749534643888,-10238.87001407,0.00023637,2]
[365208848,1749534643897,-4906.66955765,0.0002364,2]
[365208850,1749534643906,-5901.7523584,0.00023646,2]
[365208852,1749534643915,-5901.7523584,0.00023648,2]
[365208854,1749534643925,-4906.66955765,0.00023651,2]
[365208856,1749534643935,-425.73233379,0.00023659,9]
[365208858,1749534643944,-5901.7523584,0.0002366,2]
[365208860,1749534643954,-4230.734931,0.00023664,2]
[365208862,1749534643963,-5901.7523584,0.00023664,2]
[365208864,1749534643973,-12692.20479295,0.00023665,2]
[365208866,1749534643982,-1083.95988916,0.00023672,2]
[365208868,1749534643991,-630.59374506,0.00023673,2]
[365208870,1749534644001,-800.0,0.00023682,2]
[365208872,1749534644011,-10238.87001407,0.00023683,2]
[365208874,1749534644021,-2663.0,0.00023684,7]
[365208876,1749534644030,-1234.0,0.00023684,7]
[365208878,1749534644039,-4230.734931,0.00023688,2]
[365208880,1749534644049,-12692.20479295,0.00023691,2]
[365208882,1749534644058,-151.0,0.000237,7]
[365208884,1749534644067,-151.0,0.000237,7]
[365208886,1749534644076,-638.0,0.000237,2]
[365208888,1749534644086,-617.0,0.00023706,2]
[365208890,1749534644095,-316.0,0.0002371,3]
[365208892,1749534644104,-316.0,0.0002371,3]
[365208894,1749534644114,-316.0,0.0002371,3]
[365208896,1749534644124,-316.0,0.0002371,3]
[365208898,1749534644134,-328.020454,0.0002371,3]
[365208900,1749534644143,-500.0,0.0002371,2]
[365208902,1749534644152,-215.0738,0.00023728,2]
[365208904,1749534644162,-500.57016739,0.00023773,2]
[365208906,1749534644171,-500.0,0.00023773,2]
[365208908,1749534644182,-500.0,0.00023773,2]
[365208910,1749534644191,-500.0,0.00023773,2]
[365208912,1749534644200,-515.14269437,0.00023773,2]
[365208914,1749534644210,-500.0,0.00023773,2]
[365208916,1749534644219,-500.0,0.00023773,2]
[365208918,1749534644229,-12492.39244627,0.0002378,5]
[365208920,1749534644239,-487.99792373,0.0002379,2]
[365208922,1749534644249,-425.73233379,0.00023797,9]
[365208924,1749534644258,-200.0,0.00023799,2]
[365208926,1749534644267,-200.0,0.00023799,2]
[365208928,1749534644277,-185.0,0.000238,7]
[365208930,1749534644286,-185.0,0.000238,7]
[365208932,1749534644295,-310012.08256375,0.000238,3]
[365208934,1749534644305,-151.0,0.000238,7]
[365208936,1749534644314,-151.0,0.000238,7]
[365208938,1749534644323,-151.0,0.000238,7]
[365208940,1749534644333,-238.759527,0.000238,7]
[365208942,1749534644343,-238.759527,0.000238,7]
[365208945,1749534644352,-1007.329801,0.000238,5]
[365208956,1749534644444,-151.0,0.000238,7]
[365208958,1749534644454,-151.0,0.000238,7]
[365208960,1749534644464,-151.0,0.000238,7]
[365208961,1749534644473,-213.1263252,0.000238,3]
[365208963,1749534644483,-151.0,0.000238,7]
[365208965,1749534644492,-151.0,0.000238,7]
[365208967,1749534644501,-151.0,0.000238,7]
[365208969,1749534644511,-209.898236,0.000238,30]
[365208971,1749534644520,-160.0,0.000238,3]
[365208973,1749534644530,-160.0,0.000238,3]
[365208975,1749534644540,-229.6792923,0.000238,3]
[365208977,1749534644549,-151.0,0.000238,7]
[365208979,1749534644559,-257.126411,0.000238,7]
[365208981,1749534644568,-257.126411,0.000238,7]
[365208984,1749534644578,-151.0,0.000238,7]
[365208985,1749534644587,-151.0,0.000238,7]
[365208988,1749534644597,-261.256242,0.000238,7]
[365208990,1749534644607,-155.216599,0.000238,7]
[365208992,1749534644618,-151.0,0.000238,7]
[365208994,1749534644630,-151.0,0.000238,7]
[365208996,1749534644639,-151.0,0.000238,7]
[365208998,1749534644648,-151.0,0.000238,7]
[365209000,1749534644659,-178.931698,0.000238,7]
[365209002,1749534644668,-834.9046531,0.000238,3]
[365209004,1749534644678,-151.0,0.000238,7]
[365209006,1749534644689,-151.179757,0.000238,7]
[365209008,1749534644699,-151.0,0.000238,7]
[365209010,1749534644709,-151.0,0.000238,7]
[365209012,1749534644719,-225.60871679,0.00023801,2]
[365209014,1749534644728,-2000.0,0.00023808,2]
[365209016,1749534644738,-2000.0,0.00023808,2]
[365209018,1749534644748,-2000.0,0.00023808,2]
[365209020,1749534644758,-2000.0,0.00023808,2]
[365209022,1749534644767,-2000.0,0.00023808,2]
[365209024,1749534644777,-597.83924358,0.00023808,2]
[365209026,1749534644786,-500.0,0.00023809,9]
[365209028,1749534644796,-1500.0,0.00023824,2]
[365209030,1749534644805,-460.0,0.00023835,4]
[365209032,1749534644815,-460.0,0.00023835,4]
[365209034,1749534644824,-1048.57,0.00023835,4]
[365209036,1749534644834,-654.44,0.00023835,4]
[365209038,1749534644843,-685.68,0.00023835,4]
[365209040,1749534644853,-3244.6,0.00023835,4]
[365209042,1749534644862,-802.39,0.00023835,4]
[365209044,1749534644872,-793.87,0.00023835,4]
[365209046,1749534644881,-811.37,0.00023835,4]
[365209048,1749534644891,-509.53,0.00023835,4]
[365209050,1749534644901,-460.0,0.00023835,4]
[365209052,1749534644911,-914.94,0.00023835,4]
[365209054,1749534644920,-2069.0,0.00023847,2]
[365209056,1749534644929,-357.0740979,0.0002389,2]
[365209058,1749534644939,-161.381195,0.0002389,2]
[365209060,1749534644949,-573.244939,0.0002389,2]
[365209062,1749534644958,-3449.8,0.00023893,2]
[365209064,1749534644969,-800.0,0.00023895,2]
[365209066,1749534644978,-61310.49,0.000239,7]
[365209068,1749534644987,-160.0,0.000239,4]
[365209070,1749534644996,-306.79764681,0.000239,5]
[365209072,1749534645006,-151.778115,0.000239,7]
[365209074,1749534645016,-151.150968,0.000239,7]
[365209076,1749534645025,-155.160346,0.000239,7]
[365209078,1749534645035,-151.0,0.000239,7]
[365209080,1749534645045,-154.906503,0.000239,7]
[365209082,1749534645055,-160.0,0.000239,5]
[365209084,1749534645064,-1025.36665579,0.000239,2]
[365209086,1749534645073,-4658.0,0.00023901,2]
[365209088,1749534645083,-2663.0,0.00023918,7]
[365209090,1749534645092,-1234.0,0.00023918,7]
[365209092,1749534645102,-425.73233379,0.00023934,10]
[365209094,1749534645111,-500.0,0.0002396,2]
[365209096,1749534645120,-2200.0,0.0002396,2]
[365209098,1749534645130,-501.75429769,0.00023973,2]
[365209100,1749534645139,-500.0,0.00023973,2]
[365209102,1749534645149,-500.0,0.00023973,2]
[365209104,1749534645159,-500.0,0.00023973,2]
[365209106,1749534645168,-500.0,0.00023973,2]
[365209108,1749534645177,-600.0,0.00023973,2]
[365209110,1749534645187,-500.0,0.00023973,2]
[365209112,1749534645196,-754.0,0.0002399,2]
[365209114,1749534645206,-200.43437654,0.00023999,2]
[365209116,1749534645215,-200.0,0.00023999,2]
[365209118,1749534645224,-200.45704957,0.00023999,2]
[365209120,1749534645234,-1637.03,0.00023999,7]
[365209122,1749534645243,-65020.49017657,0.00024,2]
[365209124,1749534645252,-1683.95493683,0.00024,2]
[365209126,1749534645262,-10093.59757613,0.00024,2]
[365209128,1749534645271,-2000.0,0.00024,2]
[365209130,1749534645281,-2000.0,0.00024,2]
[365209132,1749534645291,-6751.24335152,0.00024,2]
[365209134,1749534645300,-451.02810955,0.00024,2]
[365209135,1749534645310,-43616.01,0.00024,2]
[365209137,1749534645320,-29384.85079472,0.00024,2]
[365209140,1749534645338,-8010.77736774,0.00024,2]
[365209143,1749534645351,-95120.83998489,0.00024,2]
[365209145,1749534645360,-883.53251485,0.00024,14]
[365209146,1749534645369,-13687.0,0.00024,7]
[365209148,1749534645379,-2668.46,0.00024,2]
[365209150,1749534645389,-237.10888883,0.00024,60]
[365209152,1749534645398,-29794.0,0.00024,2]
[365209154,1749534645408,-500.0,0.00024,3]
[365209156,1749534645418,-16132.1759,0.00024,30]
[365209158,1749534645427,-2000.0,0.00024,2]
[365209160,1749534645437,-206.0,0.00024,2]
[365209162,1749534645447,-430.58,0.00024,3]
[365209164,1749534645457,-2000.0,0.00024,2]
[365209166,1749534645466,-2000.0,0.00024,2]
[365209168,1749534645476,-208.0,0.00024,2]
[365209170,1749534645486,-206.0,0.00024,2]
[365209172,1749534645495,-206.0,0.00024,2]
[365209174,1749534645505,-15000.0,0.00024,2]
[365209176,1749534645514,-160.0,0.00024,7]
[365209178,1749534645524,-152.145249,0.00024,7]
[365209180,1749534645533,-162.793971,0.00024,7]
[365209182,1749534645544,-151.0,0.00024,7]
[365209184,1749534645553,-151.0,0.00024,7]
[365209186,1749534645563,-151.0,0.00024,7]
[365209188,1749534645573,-151.0,0.00024,7]
[365209189,1749534645582,-151.0,0.00024,7]
[365209190,1749534645591,-151.0,0.00024,7]
[365209191,1749534645600,-297.234365,0.00024,7]
[365209192,1749534645610,-151.0,0.00024,7]
[365209193,1749534645622,-152.884164,0.00024,7]
[365209194,1749534645632,-151.0,0.00024,7]
[365209195,1749534645643,-151.0,0.00024,7]
[365209196,1749534645653,-151.0,0.00024,7]
[365209197,1749534645663,-156.884135,0.00024,7]
[365209198,1749534645672,-151.928045,0.00024,7]
[365209199,1749534645682,-151.0,0.00024,7]
[365209200,1749534645692,-151.0,0.00024,7]
[365209201,1749534645702,-151.0,0.00024,7]
[365209202,1749534645711,-151.0,0.00024,7]
[365209203,1749534645721,-191.821942,0.00024,7]
[365209204,1749534645730,-152.895359,0.00024,7]
[365209205,1749534645739,-151.0,0.00024,7]
[365209206,1749534645749,-151.0,0.00024,7]
[365209207,1749534645758,-151.0,0.00024,7]
[365209208,1749534645767,-151.0,0.00024,7]
[365209209,1749534645776,-151.589819,0.00024,7]
[365209210,1749534645786,-151.0,0.00024,7]
[365209211,1749534645795,-151.517554,0.00024,7]
[365209213,1749534645804,-181.342063,0.00024,7]
[365209215,1749534645814,-181.342063,0.00024,7]
[365209217,1749534645824,-151.0,0.00024,7]
[365209219,1749534645834,-151.0,0.00024,7]
[365209221,1749534645845,-238.759527,0.00024,7]
[365209223,1749534645854,-238.759527,0.00024,7]
[365209225,1749534645864,-238.759527,0.00024,7]
[365209227,1749534645873,-238.759527,0.00024,7]
[365209229,1749534645882,-151.0,0.00024,7]
[365209231,1749534645892,-151.0,0.00024,7]
[365209233,1749534645901,-151.563386,0.00024,7]
[365209235,1749534645911,-151.0,0.00024,7]
[365209237,1749534645920,-151.0,0.00024,7]
[365209239,1749534645930,-852.45271,0.00024,2]
[365209241,1749534645939,-852.45271,0.00024,2]
[365209243,1749534645948,-852.45271,0.00024,2]
[365209245,1749534645958,-852.45271,0.00024,2]
[365209247,1749534645967,-151.0,0.00024,7]
[365209249,1749534645976,-151.0,0.00024,7]
[365209251,1749534645985,-528.973786,0.00024,7]
[365209253,1749534645995,-528.973786,0.00024,7]
[365209255,1749534646004,-528.973786,0.00024,7]
[365209257,1749534646014,-528.973786,0.00024,7]
[365209259,1749534646023,-151.0,0.00024,7]
[365209261,1749534646033,-151.0,0.00024,7]
[365209263,1749534646042,-500.0,0.00024,2]
[365209265,1749534646052,-151.0,0.00024,7]
[365209267,1749534646061,-153.344201,0.00024,7]
[365209269,1749534646070,-156.21785,0.00024,7]